fUSD/lending_fUSD_20250209
["ID","MTS","AMOUNT","RATE_DAILY","PERIOD"]
[352419298,1739091796301,-1000.0,0.00010268,2]
[352419299,1739091796323,-500.0,0.00010268,2]
[352419300,1739091796345,-3085.25,0.00010268,2]
[352419301,1739091796367,-500.0,0.00010268,2]
[352419302,1739091796390,-1511.85,0.00010268,2]
[352419303,1739091796412,-659.53,0.00010268,2]
[352419304,1739091796434,-829.33,0.00010268,2]
[352419305,1739091796455,-500.0,0.00010268,2]
[352419306,1739091796475,-500.0,0.00010268,2]
[352419307,1739091796496,-500.0,0.00010268,2]
[352419308,1739091796518,-500.0,0.00010268,2]
[352419309,1739091796541,-1327.13,0.00010268,2]
[352419310,1739091796563,-1378.42,0.00010268,2]
[352419311,1739091796589,-1385.6,0.00010268,2]
[352419312,1739091796610,-500.0,0.00010268,2]
[352419313,1739091796634,-954.87,0.00010268,2]
[352419314,1739091796658,-1399.29,0.00010268,2]
[352419315,1739091796680,-1765.4,0.00010268,2]
[352419316,1739091796702,-500.0,0.00010268,2]
[352419317,1739091796724,-1325.9,0.00010268,2]
[352419318,1739091796746,-634.32,0.00010268,2]
[352419319,1739091796767,-500.0,0.00010268,2]
[352419320,1739091796790,-643.8,0.00010268,2]
[352419321,1739091796812,-555.44,0.00010268,2]
[352419322,1739091796834,-500.0,0.00010268,2]
[352419323,1739091796857,-909.81,0.00010268,2]
[352419324,1739091796879,-765.74,0.00010268,2]
[352419325,1739091796901,-654.22,0.00010268,2]
[352419326,1739091796925,-500.0,0.00010268,2]
[352419327,1739091796947,-1051.32,0.00010268,2]
[352419328,1739091796969,-629.4,0.00010268,2]
[352419329,1739091796991,-500.0,0.00010268,2]
[352419330,1739091797020,-500.0,0.00010268,2]
[352419331,1739091797050,-500.0,0.00010268,2]
[352419332,1739091797077,-815.61,0.00010268,2]
[352419333,1739091797104,-500.0,0.00010268,2]
[352419334,1739091797132,-1310.23,0.00010268,2]
[352419335,1739091797160,-1327.69,0.00010268,2]
[352419336,1739091797188,-561.95224097,0.00010269,2]
[352419337,1739091797215,-500.0,0.00010269,2]
[352419338,1739091797240,-500.0,0.00010269,2]
[352419339,1739091797266,-304.92,0.00010269,2]
[352419340,1739091797293,-170.3028757,0.00010269,2]
[352419341,1739091797320,-500.0,0.00010269,2]
[352419342,1739091797347,-500.0,0.00010269,2]
[352419343,1739091797374,-642.82670003,0.00010269,2]
[352419344,1739091797401,-963.37,0.00010269,2]
[352419345,1739091797428,-500.0,0.00010269,2]
[352419346,1739091797454,-500.0,0.00010269,2]
[352419347,1739091797479,-500.0,0.00010269,2]
[352419348,1739091797505,-500.0,0.00010269,2]
[352419349,1739091797532,-500.0,0.00010269,2]
[352419350,1739091797559,-500.0,0.00010269,2]
[352419351,1739091797588,-508.47853082,0.00010269,2]
[352419352,1739091797611,-500.0,0.00010269,2]
[352419353,1739091797636,-500.0,0.00010269,2]
[352419354,1739091797664,-500.0,0.00010269,2]
[352419355,1739091797692,-500.0,0.00010269,2]
[352419356,1739091797716,-500.0,0.00010269,2]
[352419357,1739091797740,-500.0,0.00010269,2]
[352419358,1739091797767,-500.0,0.00010269,2]
[352419359,1739091797792,-500.0,0.00010269,2]
[352419360,1739091797817,-500.0,0.00010269,2]
[352419361,1739091797843,-908.44,0.00010269,2]
[352419362,1739091797868,-628.7,0.00010269,2]
[352419363,1739091797894,-500.0,0.00010269,2]
[352419364,1739091797919,-500.0,0.00010269,2]
[352419365,1739091797944,-556.3,0.00010269,2]
[352419366,1739091797971,-500.0,0.00010269,2]
[352419367,1739091797997,-500.0,0.00010269,2]
[352419368,1739091798021,-500.0,0.00010269,2]
[352419369,1739091798046,-235.5,0.00010269,2]
[352419370,1739091798071,-500.0,0.00010269,2]
[352419371,1739091798097,-500.0,0.00010269,2]
[352419372,1739091798122,-500.0,0.00010269,2]
[352419373,1739091798149,-541.78,0.00010269,2]
[352419374,1739091798175,-500.0,0.00010269,2]
[352419375,1739091798201,-500.0,0.00010269,2]
[352419376,1739091798231,-633.13,0.00010269,2]
[352419377,1739091798257,-924.07,0.00010269,2]
[352419378,1739091798283,-500.0,0.00010269,2]
[352419379,1739091798309,-500.0,0.00010269,2]
[352419380,1739091798334,-289.2,0.00010269,2]
[352419381,1739091798359,-473.08,0.00010269,2]
[352419382,1739091798384,-500.0,0.00010269,2]
[352419383,1739091798409,-500.0,0.00010269,2]
[352419384,1739091798434,-500.0,0.00010269,2]
[352419385,1739091798459,-500.0,0.00010269,2]
[352419386,1739091798484,-500.0,0.00010269,2]
[352419387,1739091798508,-500.0,0.00010269,2]
[352419388,1739091798534,-500.0,0.00010269,2]
[352419389,1739091798560,-500.0,0.00010269,2]
[352419390,1739091798588,-500.0,0.00010269,2]
[352419391,1739091798615,-500.0,0.00010269,2]
[352419392,1739091798641,-500.0,0.00010269,2]
[352419393,1739091798670,-941.43,0.00010269,2]
[352419394,1739091798696,-500.0,0.00010269,2]
[352419395,1739091798722,-500.0,0.00010269,2]
[352419396,1739091798749,-665.59,0.00010269,2]
[352419397,1739091798775,-500.0,0.00010269,2]
[352419398,1739091798801,-500.0,0.00010269,2]
[352419399,1739091798828,-981.71,0.00010269,2]
[352419400,1739091798855,-1060.65,0.00010269,2]
[352419401,1739091798881,-500.0,0.00010269,2]
[352419402,1739091798908,-500.0,0.00010269,2]
[352419403,1739091798935,-555.58,0.00010269,2]
[352419404,1739091798962,-500.0,0.00010269,2]
[352419405,1739091798989,-500.0,0.00010269,2]
[352419406,1739091799015,-500.0,0.00010269,2]
[352419407,1739091799041,-500.0,0.00010269,2]
[352419408,1739091799067,-443.71669226,0.00010269,2]
[352419409,1739091799093,-500.0,0.00010269,2]
[352419410,1739091799118,-500.0,0.00010269,2]
[352419411,1739091799144,-618.73,0.00010269,2]
[352419412,1739091799168,-504.7236853,0.00010269,2]
[352419413,1739091799194,-500.0,0.00010269,2]
[352419414,1739091799220,-598.27002153,0.00010269,2]
[352419415,1739091799248,-500.0,0.00010269,2]
[352419416,1739091799274,-500.0,0.00010269,2]
[352419417,1739091799301,-500.0,0.00010269,2]
[352419418,1739091799330,-500.0,0.00010269,2]
[352419419,1739091799358,-449.03321889,0.00010269,2]
[352419420,1739091799385,-500.0,0.00010269,2]
[352419421,1739091799411,-500.0,0.00010269,2]
[352419422,1739091799438,-500.0,0.00010269,2]
[352419423,1739091799464,-718.36,0.00010269,2]
[352419424,1739091799489,-534.6,0.00010269,2]
[352419425,1739091799515,-513.56062866,0.00010269,2]
[352419426,1739091799540,-506.87619966,0.00010269,2]
[352419427,1739091799565,-500.0,0.00010269,2]
[352419428,1739091799593,-500.0,0.00010269,2]
[352419429,1739091799617,-500.0,0.00010269,2]
[352419430,1739091799643,-500.0,0.00010269,2]
[352419431,1739091799668,-500.0,0.00010269,2]
[352419432,1739091799692,-780.28,0.00010269,2]
[352419433,1739091799722,-500.0,0.00010269,2]
[352419434,1739091799749,-500.0,0.00010269,2]
[352419435,1739091799777,-500.0,0.00010269,2]
[352419436,1739091799804,-500.0,0.00010269,2]
[352419437,1739091799830,-500.0,0.00010269,2]
[352419438,1739091799857,-500.0,0.00010269,2]
[352419439,1739091799883,-500.0,0.00010269,2]
[352419440,1739091799909,-500.0,0.00010269,2]
[352419441,1739091799936,-500.0,0.00010269,2]
[352419442,1739091799962,-500.0,0.00010269,2]
[352419443,1739091799988,-500.0,0.00010269,2]
[352419444,1739091800015,-500.0,0.00010269,2]
[352419445,1739091800040,-500.0,0.00010269,2]
[352419446,1739091800065,-500.0,0.00010269,2]
[352419447,1739091800091,-500.0,0.00010269,2]
[352419448,1739091800117,-759.73,0.00010269,2]
[352419449,1739091800143,-500.0,0.00010269,2]
[352419450,1739091800167,-500.0,0.00010269,2]
[352419451,1739091800192,-500.0,0.00010269,2]
[352419452,1739091800218,-243.78454013,0.00010269,2]
[352419453,1739091800242,-581.2,0.00010269,2]
[352419454,1739091800269,-768.88,0.00010269,2]
[352419455,1739091800293,-500.0,0.00010269,2]
[352419456,1739091800318,-500.0,0.00010269,2]
[352419457,1739091800342,-500.0,0.00010269,2]
[352419458,1739091800367,-500.0,0.00010269,2]
[352419459,1739091800394,-500.0,0.00010269,2]
[352419460,1739091800421,-851.5,0.00010269,2]
[352419461,1739091800446,-500.0,0.00010269,2]
[352419462,1739091800868,-500.0,0.00010269,2]
[352419463,1739091800925,-500.0,0.00010269,2]
[352419464,1739091800948,-500.0,0.00010269,2]
[352419465,1739091800971,-500.0,0.00010269,2]
[352419466,1739091800993,-500.0,0.00010269,2]
[352419467,1739091801016,-500.0,0.00010269,2]
[352419468,1739091801038,-500.0,0.00010269,2]
[352419469,1739091801061,-500.0,0.00010269,2]
[352419470,1739091801083,-507.34561122,0.00010269,2]
[352419471,1739091801105,-505.26379251,0.00010269,2]
[352419472,1739091801128,-500.0,0.00010269,2]
[352419473,1739091801151,-500.0,0.00010269,2]
[352419474,1739091801175,-500.0,0.00010269,2]
[352419475,1739091801197,-526.7,0.00010269,2]
[352419476,1739091801219,-500.0,0.00010269,2]
[352419477,1739091801242,-820.51,0.00010269,2]
[352419478,1739091801265,-552.77,0.00010269,2]
[352419479,1739091801287,-500.0,0.00010269,2]
[352419480,1739091801309,-500.0,0.00010269,2]
[352419481,1739091801332,-848.24,0.00010269,2]
[352419482,1739091801354,-500.0,0.00010269,2]
[352419483,1739091801376,-500.0,0.00010269,2]
[352419484,1739091801398,-500.0,0.00010269,2]
[352419485,1739091801420,-500.0,0.00010269,2]
[352419486,1739091801443,-500.0,0.00010269,2]
[352419487,1739091801465,-500.0,0.00010269,2]
[352419488,1739091801488,-989.37,0.00010269,2]
[352419489,1739091801511,-503.75330038,0.00010269,2]
[352419490,1739091801532,-500.0,0.00010269,2]
[352419491,1739091801555,-500.0,0.00010269,2]
[352419492,1739091801578,-500.0,0.00010269,2]
[352419493,1739091801605,-560.3,0.00010269,2]
[352419494,1739091801628,-500.0,0.00010269,2]
[352419495,1739091801653,-500.0,0.00010269,2]
[352419496,1739091801676,-584.23,0.00010269,2]
[352419497,1739091801699,-500.0,0.00010269,2]
[352419498,1739091801721,-500.0,0.00010269,2]
[352419499,1739091801743,-500.0,0.00010269,2]
[352419500,1739091801764,-505.12161047,0.00010269,2]
[352419501,1739091801786,-588.06,0.00010269,2]
[352419502,1739091801809,-500.0,0.00010269,2]
[352419503,1739091801831,-500.0,0.0001027,2]
[352419504,1739091801853,-500.0,0.0001027,2]
[352419505,1739091801876,-504.84150787,0.0001027,2]
[352419506,1739091801900,-500.0,0.0001027,2]
[352419507,1739091801924,-500.0,0.0001027,2]
[352419508,1739091801947,-500.0,0.0001027,2]
[352419509,1739091801971,-500.0,0.0001027,2]
[352419510,1739091801993,-500.0,0.0001027,2]
[352419511,1739091802018,-500.0,0.0001027,2]
[352419512,1739091802040,-500.0,0.0001027,2]
[352419513,1739091802063,-502.49212297,0.0001027,2]
[352419514,1739091802085,-500.0,0.0001027,2]
[352419515,1739091802107,-500.0,0.0001027,2]
[352419516,1739091802130,-500.0,0.0001027,2]
[352419517,1739091802153,-500.0,0.0001027,2]
[352419518,1739091802176,-500.0,0.0001027,2]
[352419519,1739091802200,-500.0,0.0001027,2]
[352419520,1739091802226,-500.0,0.0001027,2]
[352419521,1739091802248,-500.0,0.0001027,2]
[352419522,1739091802272,-500.0,0.0001027,2]
[352419523,1739091802293,-500.0,0.0001027,2]
[352419524,1739091802317,-500.0,0.0001027,2]
[352419525,1739091802342,-500.0,0.0001027,2]
[352419526,1739091802366,-286.70127432,0.0001027,2]
[352419527,1739091802390,-500.0,0.00010271,2]
[352419528,1739091802413,-500.0,0.00010271,2]
[352419529,1739091802439,-500.0,0.00010271,2]
[352419530,1739091802463,-543.05,0.00010271,2]
[352419531,1739091802486,-543.05,0.00010271,2]
[352419532,1739091802508,-543.05,0.00010271,2]
[352419533,1739091802531,-967.78,0.00010404,2]
[352419534,1739091802553,-924.55,0.00010404,2]
[352419535,1739091802575,-500.0,0.00010404,2]
[352419536,1739091802602,-665.92,0.00010404,2]
[352419537,1739091802624,-545.78,0.00010404,2]
[352419538,1739091802648,-702.09,0.00010404,2]
[352419539,1739091802671,-617.84,0.00010404,2]
[352419540,1739091802693,-609.37,0.00010404,2]
[352419541,1739091802715,-500.0,0.00010404,2]
[352419542,1739091802736,-500.0,0.00010404,2]
[352419543,1739091802759,-500.0,0.00010404,2]
[352419544,1739091802781,-500.0,0.00010404,2]
[352419545,1739091802805,-1215.0,0.00010404,2]
[352419546,1739091802826,-500.0,0.00010404,2]
[352419547,1739091802848,-500.0,0.00010404,2]
[352419548,1739091802871,-965.06,0.00010404,2]
[352419549,1739091802893,-500.0,0.00010404,2]
[352419550,1739091802915,-500.0,0.00010404,2]
[352419551,1739091802940,-1210.64,0.00010404,2]
[352419552,1739091802964,-500.0,0.00010404,2]
[352419553,1739091802988,-500.0,0.00010404,2]
[352419554,1739091803012,-500.0,0.00010404,2]
[352419555,1739091803035,-500.0,0.00010404,2]
[352419556,1739091803059,-500.0,0.00010404,2]
[352419557,1739091803082,-1114.89,0.00010404,2]
[352419558,1739091803106,-1309.64,0.00010404,2]
[352419559,1739091803134,-500.0,0.00010404,2]
[352419560,1739091803160,-1341.12,0.00010404,2]
[352419561,1739091803184,-500.0,0.00010404,2]
[352419562,1739091803209,-1294.06,0.00010404,2]
[352419563,1739091803231,-500.0,0.00010404,2]
[352419564,1739091803253,-500.0,0.00010404,2]
[352419565,1739091803275,-500.0,0.00010404,2]
[352419566,1739091803297,-500.0,0.00010404,2]
[352419567,1739091803318,-500.0,0.00010404,2]
[352419568,1739091803341,-500.0,0.00010404,2]
[352419569,1739091803366,-1323.28,0.00010404,2]
[352419570,1739091803390,-579.55817727,0.00010404,2]
[352419571,1739091803413,-765.53,0.00010404,2]
[352419572,1739091803435,-500.0,0.00010404,2]
[352419573,1739091803457,-500.0,0.00010404,2]
[352419574,1739091803480,-1233.62,0.00010404,2]
[352419575,1739091803502,-751.21,0.00010404,2]
[352419576,1739091803526,-500.0,0.00010404,2]
[352419577,1739091803547,-500.0,0.00010404,2]
[352419578,1739091803569,-500.0,0.00010404,2]
[352419579,1739091803596,-500.0,0.00010404,2]
[352419580,1739091803619,-517.83,0.00010404,2]
[352419581,1739091803644,-500.0,0.00010404,2]
[352419582,1739091803668,-500.0,0.00010404,2]
[352419583,1739091803691,-500.0,0.00010404,2]
[352419584,1739091803713,-738.26,0.00010404,2]
[352419585,1739091803735,-1326.95,0.00010404,2]
[352419586,1739091803756,-156.26,0.00010404,2]
[352419587,1739091803778,-1078.14,0.00010404,2]
[352419588,1739091803800,-500.0,0.00010404,2]
[352419589,1739091803821,-500.0,0.00010404,2]
[352419590,1739091803842,-500.0,0.00010404,2]
[352419591,1739091803864,-901.36,0.00010404,2]
[352419592,1739091803887,-500.0,0.00010404,2]
[352419593,1739091803908,-500.0,0.00010404,2]
[352419594,1739091803931,-516.54,0.00010404,2]
[352419595,1739091803952,-500.0,0.00010404,2]
[352419596,1739091803975,-500.0,0.00010404,2]
[352419597,1739091803997,-500.0,0.00010404,2]
[352419598,1739091804018,-500.0,0.00010404,2]
[352419599,1739091804041,-966.24,0.00010404,2]
[352419600,1739091804063,-500.0,0.00010404,2]
[352419601,1739091804085,-636.36,0.00010404,2]
[352419602,1739091804106,-500.0,0.00010404,2]
[352419603,1739091804130,-1514.93,0.00010404,2]
[352419604,1739091804153,-500.0,0.00010404,2]
[352419605,1739091804180,-500.0,0.00010404,2]
[352419606,1739091804202,-601.88,0.00010404,2]
[352419607,1739091804224,-500.0,0.00010404,2]
[352419608,1739091804246,-597.8,0.00010404,2]
[352419609,1739091804268,-500.0,0.00010404,2]
[352419610,1739091804290,-500.0,0.00010404,2]
[352419611,1739091804316,-1241.63,0.00010404,2]
[352419612,1739091804338,-387.06162513,0.00010404,2]
[352419613,1739091804360,-1311.9,0.00010404,2]
[352419614,1739091804382,-500.0,0.00010404,2]
[352419615,1739091804405,-838.02,0.00010404,2]
[352419616,1739091804428,-201.901894,0.00010404,2]
[352419617,1739091804450,-500.0,0.00010404,2]
[352419618,1739091804472,-674.15,0.00010404,2]
[352419619,1739091804494,-500.0,0.00010404,2]
[352419620,1739091804693,-1251.42,0.00010404,2]
[352419621,1739091804718,-500.0,0.00010405,2]
[352419622,1739091804740,-500.0,0.00010405,2]
[352419623,1739091804764,-500.0,0.00010405,2]
[352419624,1739091804786,-500.0,0.00010405,2]
[352419625,1739091804811,-601.87,0.00010405,2]
[352419626,1739091804834,-500.0,0.00010405,2]
[352419627,1739091804855,-500.0,0.00010405,2]
[352419628,1739091804879,-817.43,0.00010405,2]
[352419629,1739091804907,-677.08,0.00010405,2]
[352419630,1739091804933,-500.0,0.00010405,2]
[352419631,1739091804959,-620.02,0.00010405,2]
[352419632,1739091804986,-500.0,0.00010405,2]
[352419633,1739091805013,-500.0,0.00010405,2]
[352419634,1739091805039,-500.0,0.00010405,2]
[352419635,1739091805066,-972.64,0.00010405,2]
[352419636,1739091805090,-500.0,0.00010405,2]
[352419637,1739091805114,-607.01,0.00010405,2]
[352419638,1739091805146,-500.0,0.00010405,2]
[352419639,1739091805170,-500.0,0.00010405,2]
[352419640,1739091805193,-500.0,0.00010405,2]
[352419641,1739091805218,-683.34,0.00010405,2]
[352419642,1739091805242,-285.3,0.00010405,2]
[352419643,1739091805265,-827.22,0.00010405,2]
[352419644,1739091805289,-980.16,0.00010405,2]
[352419645,1739091805312,-947.71,0.00010405,2]
[352419646,1739091805335,-664.4,0.00010405,2]
[352419647,1739091805358,-770.94,0.00010405,2]
[352419648,1739091805380,-635.06,0.00010405,2]
[352419649,1739091805407,-884.51,0.00010405,2]
[352419650,1739091805430,-578.76,0.00010405,2]
[352419651,1739091805453,-500.0,0.00010405,2]
[352419652,1739091805476,-934.57,0.00010405,2]
[352419653,1739091805498,-697.71,0.00010405,2]
[352419654,1739091805521,-940.29,0.00010405,2]
[352419655,1739091805544,-622.16,0.00010405,2]
[352419656,1739091805566,-515.77,0.00010405,2]
[352419657,1739091805592,-860.48,0.00010405,2]
[352419658,1739091805615,-500.0,0.00010405,2]
[352419659,1739091805641,-665.76,0.00010405,2]
[352419660,1739091805665,-425.16,0.00010405,2]
[352419661,1739091805688,-500.0,0.00010405,2]
[352419662,1739091805711,-820.5,0.00010405,2]
[352419663,1739091805735,-500.0,0.00010405,2]
[352419664,1739091805758,-500.0,0.00010405,2]
[352419665,1739091805781,-982.36,0.00010405,2]
[352419666,1739091805803,-500.0,0.00010405,2]
[352419667,1739091805827,-3174.11,0.00010405,2]
[352419668,1739091805850,-500.0,0.00010405,2]
[352419669,1739091805874,-752.27,0.00010405,2]
[352419670,1739091805899,-566.19,0.00010405,2]
[352419671,1739091805923,-500.0,0.00010405,2]
[352419672,1739091805948,-516.29,0.00010405,2]
[352419673,1739091805970,-1578.91,0.00010405,2]
[352419674,1739091805993,-736.48,0.00010405,2]
[352419675,1739091806018,-301.817165,0.00010405,2]
[352419676,1739091806040,-500.0,0.00010405,2]
[352419677,1739091806063,-1025.35,0.00010405,2]
[352419678,1739091806086,-500.0,0.00010405,2]
[352419679,1739091806109,-829.77,0.00010405,2]
[352419680,1739091806132,-943.85,0.00010405,2]
[352419681,1739091806159,-500.0,0.00010405,2]
[352419682,1739091806183,-1084.87,0.00010405,2]
[352419683,1739091806209,-500.0,0.00010405,2]
[352419684,1739091806234,-626.08,0.00010405,2]
[352419685,1739091806259,-743.16,0.00010405,2]
[352419686,1739091806283,-1273.27,0.00010405,2]
[352419687,1739091806306,-2489.29,0.00010405,2]
[352419688,1739091806329,-1103.86,0.00010405,2]
[352419689,1739091806353,-1759.54,0.00010405,2]
[352419690,1739091806376,-1366.77,0.00010405,2]
[352419691,1739091806400,-500.0,0.00010405,2]
[352419692,1739091806422,-500.0,0.00010405,2]
[352419693,1739091806446,-500.0,0.00010405,2]
[352419694,1739091806469,-500.0,0.00010405,2]
[352419695,1739091806492,-1473.0,0.00010405,2]
[352419696,1739091806515,-1148.57,0.00010405,2]
[352419697,1739091806538,-624.29,0.00010405,2]
[352419698,1739091806561,-1301.32,0.00010405,2]
[352419699,1739091806586,-1727.77,0.00010405,2]
[352419700,1739091806609,-4181.02,0.00010405,2]
[352419701,1739091806633,-543.05,0.00010405,2]
[352419702,1739091806660,-520.31,0.00010405,2]
[352419703,1739091806684,-1725.5,0.00010405,2]
[352419704,1739091806707,-961.63,0.00010405,2]
[352419705,1739091806731,-500.0,0.00010405,2]
[352419706,1739091806756,-1458.39,0.00010405,2]
[352419707,1739091806779,-500.0,0.00010405,2]
[352419708,1739091806802,-1558.13,0.00010405,2]
[352419709,1739091806825,-1000.0,0.00010405,2]
[352419710,1739091806848,-500.0,0.00010405,2]
[352419711,1739091806872,-3085.25,0.00010405,2]
[352419712,1739091806896,-500.0,0.00010405,2]
[352419713,1739091806919,-1511.85,0.00010405,2]
[352419714,1739091806943,-659.53,0.00010405,2]
[352419715,1739091806966,-829.33,0.00010405,2]
[352419716,1739091806989,-500.0,0.00010405,2]
[352419717,1739091807012,-500.0,0.00010405,2]
[352419718,1739091807035,-500.0,0.00010405,2]
[352419719,1739091807059,-500.0,0.00010405,2]
[352419720,1739091807082,-1327.13,0.00010405,2]
[352419721,1739091807105,-1378.42,0.00010405,2]
[352419722,1739091807127,-1385.6,0.00010405,2]
[352419723,1739091807151,-320.3,0.00010405,2]
[352419724,1739091807174,-954.87,0.00010405,2]
[352419725,1739091807197,-1399.29,0.00010405,2]
[352419726,1739091807221,-1765.4,0.00010405,2]
[352419727,1739091807244,-500.0,0.00010405,2]
[352419728,1739091807269,-1325.9,0.00010405,2]
[352419729,1739091807335,-634.32,0.00010405,2]
[352419730,1739091807358,-500.0,0.00010405,2]
[352419731,1739091807381,-643.8,0.00010405,2]
[352419732,1739091807403,-555.44,0.00010405,2]
[352419733,1739091807427,-500.0,0.00010405,2]
[352419734,1739091807450,-909.81,0.00010405,2]
[352419735,1739091807473,-765.74,0.00010405,2]
[352419736,1739091807498,-654.22,0.00010405,2]
[352419737,1739091807520,-500.0,0.00010405,2]
[352419738,1739091807543,-1051.32,0.00010405,2]
[352419739,1739091807566,-629.4,0.00010405,2]
[352419740,1739091807591,-500.0,0.00010405,2]
[352419741,1739091807616,-500.0,0.00010405,2]
[352419742,1739091807641,-500.0,0.00010405,2]
[352419743,1739091807666,-500.0,0.00010405,2]
[352419744,1739091807690,-1310.23,0.00010405,2]
[352419745,1739091807713,-503.34499884,0.00010406,2]
[352419746,1739091807737,-500.0,0.00010406,2]
[352419747,1739091807762,-500.0,0.00010406,2]
[352419748,1739091807787,-500.0,0.00010406,2]
[352419749,1739091807811,-963.37,0.00010406,2]
[352419750,1739091807835,-500.0,0.00010406,2]
[352419751,1739091807860,-500.0,0.00010406,2]
[352419752,1739091807883,-627.0,0.00010406,2]
[352419753,1739091807907,-329.7,0.00010406,2]
[352419754,1739091807930,-500.0,0.00010406,2]
[352419755,1739091807954,-500.0,0.00010406,2]
[352419756,1739091807975,-500.0,0.00010406,2]
[352419757,1739091807998,-500.0,0.00010406,2]
[352419758,1739091808020,-500.0,0.00010406,2]
[352419759,1739091808043,-500.0,0.00010406,2]
[352419760,1739091808067,-500.0,0.00010406,2]
[352419761,1739091808091,-500.0,0.00010406,2]
[352419762,1739091808112,-500.0,0.00010406,2]
[352419763,1739091808135,-500.0,0.00010406,2]
[352419764,1739091808158,-500.0,0.00010406,2]
[352419765,1739091808182,-908.44,0.00010406,2]
[352419766,1739091808204,-500.0,0.00010406,2]
[352419767,1739091808226,-500.0,0.00010406,2]
[352419768,1739091808249,-500.0,0.00010406,2]
[352419769,1739091808278,-500.0,0.00010406,2]
[352419770,1739091808300,-500.0,0.00010406,2]
[352419771,1739091808322,-500.0,0.00010406,2]
[352419772,1739091808344,-500.0,0.00010406,2]
[352419773,1739091808366,-500.0,0.00010406,2]
[352419774,1739091808389,-541.78,0.00010406,2]
[352419775,1739091808411,-500.0,0.00010406,2]
[352419776,1739091808433,-500.0,0.00010406,2]
[352419777,1739091808456,-633.13,0.00010406,2]
[352419778,1739091808479,-924.07,0.00010406,2]
[352419779,1739091808501,-500.0,0.00010406,2]
[352419780,1739091808524,-500.0,0.00010406,2]
[352419781,1739091808545,-500.0,0.00010406,2]
[352419782,1739091808567,-500.0,0.00010406,2]
[352419783,1739091808591,-500.0,0.00010406,2]
[352419784,1739091808613,-500.0,0.00010406,2]
[352419785,1739091808636,-500.0,0.00010406,2]
[352419786,1739091808659,-500.0,0.00010406,2]
[352419787,1739091808683,-500.0,0.00010406,2]
[352419788,1739091808705,-500.0,0.00010406,2]
[352419789,1739091808728,-500.0,0.00010406,2]
[352419790,1739091808750,-500.0,0.00010406,2]
[352419791,1739091808773,-500.0,0.00010406,2]
[352419792,1739091808796,-941.43,0.00010406,2]
[352419793,1739091808819,-500.0,0.00010406,2]
[352419794,1739091808841,-665.59,0.00010406,2]
[352419795,1739091808864,-500.0,0.00010406,2]
[352419796,1739091808886,-500.0,0.00010406,2]
[352419797,1739091808909,-981.71,0.00010406,2]